Workbook

Sheet Sheet1
A1: AMINE SOLUTION ANALYSIS VALIDATION TOOL | AN1: 1 | AO1: MEA | AP1: 61.083 | AQ1: 105.092 | AS1: Use Measured
A2: Optimized Gas Treating, Inc. | AN2: 2 | AO2: DEA | AP2: 105.136 | AQ2: 149.145 | AS2: Calculated
A3: ProTreat ™ | AN3: 3 | AO3: MDEA | AP3: 119.16 | AQ3: 0
A4: For information on how to use this calculator, visit: | D4: http://www.ogtrt.com/contactor.cfm | H4: and read Vol_2 Issue_2 | AN4: 4 | AO4: DGA | AP4: 105.136 | AQ4: 149.145
A6: Company | B6: Big Oil | J6: Sample Date | K6: 2010-09-14 | AN6: 5 | AO6: DIPA | AP6: 133.19 | AQ6: 177.199
A7: Site | B7: Gulf Coast | J7: Lab | K7: In-house | AN7: 6 | AO7: Piperazine | AP7: 86.137 | AQ7: 130.146
A8: Unit | B8: TGU #2
A11: Parameter | B11: Mole Weight | C11: Analysis | D11: Weight Fraction | E11: Mole Fraction | F11: Ion Charge | G11: Mole Fr. Charge | H11: Notes
A12: Amine | B12: MDEA | C12: wt%
A13: Free Amine | B13: =VLOOKUP(MATCH(AmineTypeUsed,AmineTypes,0),AN1:AP7,3) -> 119.16 | C13: 42.8 | D13: =C13/100 -> 0.428 | E13: =D13/B13/$B$53 -> 0.1027219759 | H13: Also called Regenerable Free Base (RFB) and alkalinity
A14: Bound (AmineH+) | B14: =B13+1.008 -> 120.168 | C14: 0.6 | D14: =C14/100 -> 0.006 | E14: =D14/B14/$B$53 -> 0.001427948378 | F14: 1 | G14: =E14*F14 -> 0.001427948378 | H14: Titrated or backcalculated from Total - Free
A15: Total | C15: =C13+C14 -> 43.4 | D15: =SUM(D13:D14) -> 0.434 | E15: =SUM(E13:E14) -> 0.1041499243 | H15: Compare this figure to a GC or IC reading
A16: Strong Base Cations | C16: ppmw
A17: Sodium (Na+) | B17: 22.99 | C17: 243 | D17: =C17/1000000 -> 0.000243 | E17: =D17/B17/$B$53 -> 0.0003022855536 | F17: 1 | G17: =E17 -> 0.0003022855536
A18: Potassium (K+) | B18: 39.098 | C18: 0 | D18: =C18/1000000 -> 0 | E18: =D18/B18/$B$53 -> 0 | F18: 1 | G18: =E18 -> 0
A19: Total Cations | B19: =D19/($B$53*E19) -> 22.99 | C19: =SUM(C17:C18) -> 243 | D19: =C19*0.000001 -> 0.000243 | E19: =SUM(E17:E18) -> 0.0003022855536 | G19: =SUM(G17:G18) -> 0.0003022855536 | H19: <2,000 ppmw (primary) and < 1,000 ppmw (TGU)
A20: Strong Acid Anions | C20: ppmw
A21: Formate (HCOO−) | B21: 45.017 | C21: 1561 | D21: =C21/1000000 -> 0.001561 | E21: =D21/B21/$B$53 -> 0.000991691164 | F21: -1 | G21: =E21*F21 -> -0.000991691164
A22: Acetate (CH3COO−) | B22: 59.044 | C22: 409 | D22: 0.000409 | E22: 0.0001981059989 | F22: -1 | G22: =E22*F22 -> -0.0001981059989
A23: Glycolate (C2H3O3−) | B23: 75.0442 | C23: 0 | D23: =C23/1000000 -> 0 | E23: 0 | F23: -1 | G23: 0
A24: Propionate (C2H5COO−) | B24: 74.078 | C24: 0 | D24: =C24/1000000 -> 0 | E24: 0 | F24: -1 | G24: 0
A25: Butyrate (C3H7COO−) | B25: =4*12.011+7*1.008+2*15.9994 -> 87.0988 | C25: 0 | D25: =C25/1000000 -> 0 | E25: 0 | F25: -1 | G25: 0
A26: Oxalate (C2O4=) | B26: 88.019 | C26: 9 | D26: 9e-06 | E26: 2.924261251e-06 | F26: -2 | G26: -5.848522502e-06
A27: Lactate (C3H5O3-) | B27: 89.071 | C27: 0 | D27: 0 | E27: 0 | F27: -1 | G27: 0
A28: Phosphate (PO4−3) | B28: 98.004 | C28: 0 | D28: 0 | E28: 0 | F28: -3 | G28: 0
A29: Chloride (Cl−) | B29: 35.453 | C29: 133 | D29: 0.000133 | E29: 0.0001072874049 | F29: -1 | G29: -0.0001072874049 | H29: Limits for stainless may be needed if H2S isn't processed
A30: Sulfate (SO4=) | B30: 96.061 | C30: 19 | D30: 1.9e-05 | E30: 5.65661457e-06 | F30: -2 | G30: -1.131322914e-05
A31: Sulfite (SO3−) | B31: =32.064+3*15.9994 -> 80.0622 | C31: 0 | D31: 0 | E31: 0 | F31: -1 | G31: 0
A32: Thiosulfate (S2O3=) | B32: 112.127 | C32: 129 | D32: 0.000129 | E32: 3.290255304e-05 | F32: -2 | G32: -6.580510608e-05
A33: Thiocyanate (SCN−) | B33: 58.083 | C33: 79 | D33: 7.9e-05 | E33: 3.889807791e-05 | F33: -1 | G33: -3.889807791e-05
A34: Total Anions | B34: =D34/($B$53*E34) -> 48.56231711 | C34: =SUM(C21:C33) -> 2339 | D34: =C34*0.000001 -> 0.002339 | E34: =SUM(E21:E33) -> 0.001377466074 | G34: =SUM(G21:G33) -> -0.001418949503 | H34: < 8,000 - 10,000 ppmw for reasonable corrosion rates
A35: Acid Gases | C35: wt%
A36: H2S (measured) | B36: =32.064+2*1.008 -> 34.08 | C36: 0.049 | D36: =C36/100 -> 0.00049 | E36: =D36/B36/$B$53 -> 0.000411193825 | F36: -1 | G36: =E36*F36 -> -0.000411193825
A37: CO2 (measured) | B37: =12.011+2*15.9994 -> 44.0098 | C37: 0 | D37: =C37/100 -> 0 | E37: =D37/B37/$B$53 -> 0 | F37: -1 | G37: =E37*F37 -> 0
A38: Total acid gas (measured) | B38: =IF(C38>0,C38/(C36/B36+C37/B37),(B36+B37)/2) -> 34.08 | C38: =C36+C37 -> 0.049 | D38: =C38/100 -> 0.00049 | E38: =D38/B38/$B$53 -> 0.000411193825 | F38: -1 | G38: -0.000411193825
A39: Total acid gas as HS- (charge balance) | B39: 33.065 | C39: =BisulfideWtFr*100 -> 0.03598993662 | D39: 0.0003598993662 | E39: =D39/B39/$B$53 -> 0.0003112881905 | F39: -1 | G39: -0.0003112881905
A40: Degradation Products | C40: wt%
A41: Bicine | B41: 163.174 | C41: 0 | D41: =C41/100 -> 0 | E41: =IF(B41>0,D41/B41/$B$53,0) -> 0 | F41: 0 | G41: =E41*F41 -> 0
A42: Product 2 | B42: 0 | C42: 0 | D42: =C42/100 -> 0 | E42: =IF(B42>0,D42/B42/$B$53,0) -> 0 | F42: 0 | G42: =E42*F42 -> 0
A43: Product 3 | B43: 0 | C43: 0 | D43: 0 | E43: 0 | F43: 0 | G43: 0
A44: Product 4 | B44: 0 | C44: 0 | D44: 0 | E44: 0 | F44: 0 | G44: 0
A45: Product 4 | B45: 0 | C45: 0 | D45: 0 | E45: 0 | F45: 0 | G45: 0
A46: Product 5 | B46: 0 | C46: 0 | D46: 0 | E46: 0 | F46: 0 | G46: 0
A47: Water (H2O) | C47: wt% | H47: Water Option
A48: Measured water content | B48: 18.015 | C48: 55 | D48: 0.55 | E48: 0.8731292014 | H48: Calculated
A49: Water content by balance (H2O) | B49: 18.015 | C49: =D49*100 -> 56.30581006 | D49: =1-SUM(D13,D14,D17:D18,D21:D33,D39,D41:D46) -> 0.5630581006 | E49: =D49/B49/$B$53 -> 0.8938590359 | H49: Acid Gas Option
A50: Total | B50: =1/B53 -> 28.59895011 | C50: =100*D50 -> 100 | D50: =SUM(D13:D14,D17:D18,D21:D33,D41:D46)+IF(H48="Calculated",D49,D48)+IF(H50="Calculated",BisulfideWtFr,D38) -> 1 | E50: =SUM(E13:E14,E17:E18,E21:E33,E41:E46)+IF(H48="Calculated",E49,E48)+IF(H50="Calculated",E39,E38) -> 1 | G50: =SUM(G14,G19,G34,G39,G41:G46) -> -3.762226157e-09 | H50: Calculated
A52: Other Calculations | B52: Calculation status | D52: =IF(ABS(G50)>0.0000005,"Not converged", "Converged") -> Converged
A53: Total gmoles per g solution | B53: =D13/B13+D14/B14+D17/B17+D18/B18+D21/B21+D22/B22+D23/B23+D24/B24+D26/B26+D28/B28+D29/B29+D30/B30+D31/B31+D32/B32+D33/B33+IF(H50="Calculated",D39/B39,IF(B36>0,D36/B36,0)+IF(B37>0,D37/B37,0))+IF(H48="Calculated",D49/B49,D48/B48)+IF(B41>0,D41/B41,0)+IF(B42>0,D42/B42,0)+IF(B43>0,D43/B43,0)+IF(B44>0,D44/B44,0)+IF(B45>0,D45/B45,0)+IF(B46>0,D46/B46,0) -> 0.03496631855 | F53: =IF(AmineTypeUsed<>"MDEA", "Warning: charge balance may be invalid if significant CO2 loading exists.","") -> 
A54: Charge balanced total acid gas loading | B54: =E39/E15 -> 0.002988847017 | C54: mol/mol amine
A56: Measured Acid Gas Loadings | B56: mol/mol free amine | C56: mol/mol total amine
A57: H2S | B57: =E36/E13 -> 0.004002978149 | C57: =E36/E15 -> 0.003948095285
A58: CO2 | B58: =E37/E13 -> 0 | C58: =E37/E15 -> 0
A59: Total | B59: =SUM(B57:B58) -> 0.004002978149 | C59: =SUM(C57:C58) -> 0.003948095285
A60: Charge balanced Total | B60: =E39/E13 -> 0.003030395276 | C60: =E39/E15 -> 0.002988847017 | E60: For a "perfect" analysis, these should be in agreement
A62: Residue (= 100 - Free Amine - Water) | B62: =100-C13-C48 -> 2.2 | C62: %wt of solution
A63: Solvent recovery | B63: =C15+0.0001*SUM(C17:C18,C21:C33)+C38+SUM(C41:C46)+C48 -> 98.7072 | C63: %wt
A64: Percent of amine bound with HSS | B64: =(ABS(SUM(G21:G33))-SUM(G17:G18))/E15*100 -> 1.072169718
A65: Percent HSS anions neutralized | B65: =ABS(G19/G34)*100 -> 21.30347506 | C65: avoid overneutralization (>100%) for performance reasons, analytical interferences, and solids precipitation risks
A66: Heat stable amine salts (HSAS) | B66: =B64/100*C15 -> 0.4653216577 | C66: %wt of solution expressed as amine (can also be measured by titration)
